[Event "Early-Titled-Tuesday-Blitz-April-02-2024"]
[Site "Chess.com"]
[Date "2024.04.02"]
[Round "3"]
[White "Ergali_Suleimen"]
[Black "Alexei_Gubajdullin"]
[Result "0-1"]
[WhiteElo "2442"]
[BlackElo "2639"]
[TimeControl "180+1"]
[EndTime "8:28:12 PDT"]
[Termination "Alexei_Gubajdullin won by resignation"]

1. e4 {[%clk 0:02:58.8]} 1... g6 {[%clk 0:02:55.8]} 2. d4 {[%clk 0:02:58.3]}
2... Bg7 {[%clk 0:02:56]} 3. Nc3 {[%clk 0:02:57.1]} 3... d6 {[%clk 0:02:56.1]}
4. f4 {[%clk 0:02:47.2]} 4... c6 {[%clk 0:02:53.6]} 5. Nf3 {[%clk 0:02:46.2]}
5... Bg4 {[%clk 0:02:53.4]} 6. Be3 {[%clk 0:02:46.2]} 6... Qb6 {[%clk
0:02:53.4]} 7. Rb1 {[%clk 0:02:35.9]} 7... Bxf3 {[%clk 0:02:50.5]} 8. gxf3
{[%clk 0:02:35.6]} 8... d5 {[%clk 0:02:48.4]} 9. exd5 {[%clk 0:02:23.3]} 9...
Nf6 {[%clk 0:02:48]} 10. f5 {[%clk 0:02:14.4]} 10... Nxd5 {[%clk 0:02:45.6]} 11.
Nxd5 {[%clk 0:02:13.4]} 11... cxd5 {[%clk 0:02:45.7]} 12. Bd3 {[%clk 0:02:09.7]}
12... Nc6 {[%clk 0:02:40.5]} 13. c3 {[%clk 0:02:05.9]} 13... Bf6 {[%clk
0:02:37.9]} 14. O-O {[%clk 0:01:55.1]} 14... g5 {[%clk 0:02:33.4]} 15. f4 {[%clk
0:01:44.5]} 15... Rg8 {[%clk 0:02:27.2]} 16. Kh1 {[%clk 0:01:27.6]} 16... g4
{[%clk 0:02:27.1]} 17. Rg1 {[%clk 0:01:22.6]} 17... h5 {[%clk 0:02:26.5]} 18. h3
{[%clk 0:01:16.6]} 18... O-O-O {[%clk 0:02:25]} 19. hxg4 {[%clk 0:01:13.1]}
19... hxg4 {[%clk 0:02:22]} 20. Rxg4 {[%clk 0:01:14]} 20... Rh8+ {[%clk
0:02:19.4]} 21. Kg2 {[%clk 0:01:14]} 21... Rh7 {[%clk 0:02:17.7]} 22. Qf3 {[%clk
0:01:09.1]} 22... Qa5 {[%clk 0:02:08.2]} 23. a3 {[%clk 0:01:02.3]} 23... Rdh8
{[%clk 0:02:07.6]} 24. Bg1 {[%clk 0:01:01.3]} 24... Rh3 {[%clk 0:01:59.8]} 25.
Rg3 {[%clk 0:00:59.7]} 25... R3h4 {[%clk 0:01:54.5]} 26. Rg4 {[%clk 0:00:54.6]}
26... R4h7 {[%clk 0:01:40.3]} 27. Re1 {[%clk 0:00:51.1]} 27... Qd8 {[%clk
0:01:38.5]} 28. Qg3 {[%clk 0:00:40.8]} 28... Rh3 {[%clk 0:01:36.7]} 29. Qxh3
{[%clk 0:00:40.9]} 29... Rxh3 {[%clk 0:01:36.4]} 30. Kxh3 {[%clk 0:00:41.8]}
30... Na5 {[%clk 0:01:35.5]} 31. Be3 {[%clk 0:00:39.7]} 31... Nc4 {[%clk
0:01:35.3]} 32. Reg1 {[%clk 0:00:33.4]} 32... Qb6 {[%clk 0:01:33.1]} 33. Bxc4
{[%clk 0:00:30.6]} 33... dxc4 {[%clk 0:01:32.3]} 34. R1g2 {[%clk 0:00:29.3]}
34... Qb5 {[%clk 0:01:31.9]} 35. Kg3 {[%clk 0:00:19.6]} 35... Qxf5 {[%clk
0:01:29.5]} 36. Kf3 {[%clk 0:00:15.3]} 36... Kd7 {[%clk 0:01:29.1]} 37. Rd2
{[%clk 0:00:11.4]} 37... Qb1 {[%clk 0:01:27.4]} 38. Rgg2 {[%clk 0:00:10.6]}
38... Qf1+ {[%clk 0:01:26.5]} 39. Rgf2 {[%clk 0:00:10.5]} 39... Qh1+ {[%clk
0:01:26.6]} 40. Rg2 {[%clk 0:00:10.7]} 40... a5 {[%clk 0:01:24.1]} 41. Bf2
{[%clk 0:00:10.8]} 41... b5 {[%clk 0:01:23.6]} 42. Be3 {[%clk 0:00:08.1]} 42...
Qh5+ {[%clk 0:01:20.6]} 43. Kf2 {[%clk 0:00:06.5]} 43... Bh4+ {[%clk 0:01:20.3]}
44. Kg1 {[%clk 0:00:05.3]} 44... Qf3 {[%clk 0:01:20.1]} 45. Bf2 {[%clk
0:00:04.5]} 45... Bf6 {[%clk 0:01:19.7]} 46. f5 {[%clk 0:00:02.8]} 46... Qxf5
{[%clk 0:01:19.3]} 47. Be1 {[%clk 0:00:03.3]} 47... Bg5 {[%clk 0:01:18.8]} 48.
Rde2 {[%clk 0:00:04.2]} 48... Bf6 {[%clk 0:01:17.3]} 49. Bg3 {[%clk 0:00:03.6]}
49... Qd3 {[%clk 0:01:16.4]} 50. Be5 {[%clk 0:00:04.1]} 50... Qd1+ {[%clk
0:01:16]} 51. Kh2 {[%clk 0:00:04.2]} 51... Bh4 {[%clk 0:01:13.7]} 52. Bg3 {[%clk
0:00:04.9]} 52... Bg5 {[%clk 0:01:09.3]} 53. Be5 {[%clk 0:00:02.6]} 53... f6
{[%clk 0:01:09.1]} 54. Bg3 {[%clk 0:00:03.5]} 54... Qd3 {[%clk 0:01:07.9]} 55.
Rgf2 {[%clk 0:00:03.5]} 55... Be3 {[%clk 0:01:07.3]} 56. Rg2 {[%clk 0:00:03.9]}
56... Bc1 {[%clk 0:01:07.1]} 57. Bh4 {[%clk 0:00:01.8]} 57... Qf3 {[%clk
0:01:06.1]} 58. Bg3 {[%clk 0:00:02.7]} 58... Qh5+ {[%clk 0:01:04.6]} 59. Kg1
{[%clk 0:00:02.4]} 59... Qh3 {[%clk 0:01:04.7]} 60. Rh2 {[%clk 0:00:01.7]} 60...
Qxg3+ {[%clk 0:01:04.3]} 0-1

[Event "Early-Titled-Tuesday-Blitz-April-02-2024"]
[Site "Chess.com"]
[Date "2024.04.02"]
[Round "3"]
[White "MikeWizard"]
[Black "Vasily_IM"]
[Result "0-1"]
[WhiteElo "2182"]
[BlackElo "2558"]
[TimeControl "180+1"]
[EndTime "8:28:13 PDT"]
[Termination "Vasily_IM won on time"]

1. d4 {[%clk 0:03:00.9]} 1... d5 {[%clk 0:02:54.8]} 2. c4 {[%clk 0:03:00.6]}
2... e6 {[%clk 0:02:54.8]} 3. Nc3 {[%clk 0:02:58.9]} 3... Nf6 {[%clk 0:02:55.2]}
4. cxd5 {[%clk 0:02:58.6]} 4... exd5 {[%clk 0:02:56]} 5. Bg5 {[%clk 0:02:58.2]}
5... Be7 {[%clk 0:02:56]} 6. Qc2 {[%clk 0:02:58]} 6... O-O {[%clk 0:02:55.8]} 7.
e3 {[%clk 0:02:58]} 7... Nbd7 {[%clk 0:02:55.5]} 8. Bd3 {[%clk 0:02:57]} 8... c6
{[%clk 0:02:55.4]} 9. h3 {[%clk 0:02:56.4]} 9... Re8 {[%clk 0:02:55.6]} 10. Nf3
{[%clk 0:02:55.9]} 10... Nf8 {[%clk 0:02:56]} 11. Ne5 {[%clk 0:02:54.4]} 11...
N6d7 {[%clk 0:02:53.2]} 12. Bxe7 {[%clk 0:02:52.4]} 12... Rxe7 {[%clk
0:02:50.4]} 13. Nxd7 {[%clk 0:02:46]} 13... Bxd7 {[%clk 0:02:49.2]} 14. b4
{[%clk 0:02:40.3]} 14... Qb6 {[%clk 0:02:40.8]} 15. Rb1 {[%clk 0:02:35.3]} 15...
Qxd4 {[%clk 0:02:35.7]} 16. O-O {[%clk 0:02:34.9]} 16... Qf6 {[%clk 0:02:31.2]}
17. b5 {[%clk 0:02:34.5]} 17... Qh4 {[%clk 0:02:17.9]} 18. bxc6 {[%clk
0:02:26.7]} 18... bxc6 {[%clk 0:02:14.4]} 19. Rb7 {[%clk 0:02:20.7]} 19... Re6
{[%clk 0:01:41.4]} 20. Bf5 {[%clk 0:02:01.4]} 20... Rd6 {[%clk 0:01:40.6]} 21.
Rfb1 {[%clk 0:01:53.5]} 21... a5 {[%clk 0:01:26.4]} 22. Rb8 {[%clk 0:01:32]}
22... Rxb8 {[%clk 0:01:21.1]} 23. Rxb8 {[%clk 0:01:30.3]} 23... Qe7 {[%clk
0:01:15.2]} 24. Bxh7+ {[%clk 0:01:25.4]} 24... Kh8 {[%clk 0:01:13.8]} 25. Bf5
{[%clk 0:01:18.9]} 25... d4 {[%clk 0:00:55.9]} 26. Bxd7 {[%clk 0:01:09.8]} 26...
Rxd7 {[%clk 0:00:54.3]} 27. exd4 {[%clk 0:00:59.5]} 27... Rxd4 {[%clk
0:00:53.6]} 28. Ne2 {[%clk 0:00:55.8]} 28... Rd6 {[%clk 0:00:49.3]} 29. Ng3
{[%clk 0:00:54.6]} 29... Kg8 {[%clk 0:00:41.7]} 30. Kh2 {[%clk 0:00:52.7]} 30...
Rf6 {[%clk 0:00:36.7]} 31. Qd2 {[%clk 0:00:44.9]} 31... g6 {[%clk 0:00:29.2]}
32. f3 {[%clk 0:00:39.9]} 32... Kg7 {[%clk 0:00:23.9]} 33. Qxa5 {[%clk 0:00:36]}
33... Ne6 {[%clk 0:00:21.1]} 34. Qc3 {[%clk 0:00:32.6]} 34... Nf4 {[%clk
0:00:20]} 35. Rb6 {[%clk 0:00:23.5]} 35... Nd5 {[%clk 0:00:18.7]} 36. Qb2 {[%clk
0:00:14.2]} 36... Nxb6 {[%clk 0:00:18.8]} 37. Qxb6 {[%clk 0:00:14]} 37... c5
{[%clk 0:00:19.1]} 38. Qb2 {[%clk 0:00:12.5]} 38... Qd6 {[%clk 0:00:17.9]} 39.
a4 {[%clk 0:00:10]} 39... Qd5 {[%clk 0:00:18]} 40. Ne4 {[%clk 0:00:07.8]} 40...
Qd4 {[%clk 0:00:14.7]} 41. Qb5 {[%clk 0:00:02.2]} 41... Qe5+ {[%clk 0:00:13.2]}
0-1

[Event "Early-Titled-Tuesday-Blitz-April-02-2024"]
[Site "Chess.com"]
[Date "2024.04.02"]
[Round "3"]
[White "Donskov_AN"]
[Black "Journey_to_GrandMaster_YT"]
[Result "1-0"]
[WhiteElo "2382"]
[BlackElo "2587"]
[TimeControl "180+1"]
[EndTime "8:28:14 PDT"]
[Termination "Donskov_AN won on time"]

1. e4 {[%clk 0:03:00.9]} 1... d6 {[%clk 0:03:00.9]} 2. d4 {[%clk 0:03:00.8]}
2... Nf6 {[%clk 0:03:01.2]} 3. Nc3 {[%clk 0:03:01.3]} 3... e5 {[%clk 0:03:01.5]}
4. Nf3 {[%clk 0:03:01.6]} 4... Nbd7 {[%clk 0:03:01.3]} 5. Bc4 {[%clk 0:03:02.1]}
5... Be7 {[%clk 0:03:01.4]} 6. O-O {[%clk 0:03:02.4]} 6... O-O {[%clk
0:03:01.1]} 7. Re1 {[%clk 0:03:03.1]} 7... c6 {[%clk 0:03:01.2]} 8. a4 {[%clk
0:03:03.8]} 8... a5 {[%clk 0:03:01.2]} 9. h3 {[%clk 0:03:03.9]} 9... Nb6 {[%clk
0:02:57.3]} 10. Ba2 {[%clk 0:03:03.9]} 10... Nfd7 {[%clk 0:02:57.5]} 11. Be3
{[%clk 0:02:56.6]} 11... exd4 {[%clk 0:02:56.9]} 12. Nxd4 {[%clk 0:02:56.4]}
12... Nc5 {[%clk 0:02:57.1]} 13. Nf5 {[%clk 0:02:52.7]} 13... Bxf5 {[%clk
0:02:56.5]} 14. exf5 {[%clk 0:02:53.6]} 14... Nbxa4 {[%clk 0:02:49.9]} 15. Nxa4
{[%clk 0:02:35.7]} 15... Nxa4 {[%clk 0:02:49.5]} 16. Qg4 {[%clk 0:02:36.5]}
16... Nc5 {[%clk 0:02:06.2]} 17. Rad1 {[%clk 0:02:33.2]} 17... Nd7 {[%clk
0:02:05]} 18. Bh6 {[%clk 0:02:27.2]} 18... Bf6 {[%clk 0:02:03.1]} 19. Rxd6
{[%clk 0:02:26.7]} 19... Kh8 {[%clk 0:01:43.5]} 20. Bf4 {[%clk 0:01:49.3]} 20...
Re8 {[%clk 0:01:30.8]} 21. Red1 {[%clk 0:01:46]} 21... Re7 {[%clk 0:01:30.7]}
22. Rxf6 {[%clk 0:01:18.5]} 22... gxf6 {[%clk 0:01:23.9]} 23. Bh6 {[%clk
0:01:18.1]} 23... Qg8 {[%clk 0:01:21.3]} 24. Qh4 {[%clk 0:01:18.3]} 24... Qd8
{[%clk 0:00:50.1]} 25. Qh5 {[%clk 0:00:51.9]} 25... Qe8 {[%clk 0:00:37.2]} 26.
Rd4 {[%clk 0:00:38.2]} 26... Re1+ {[%clk 0:00:33.9]} 27. Kh2 {[%clk 0:00:38.5]}
27... Qe5+ {[%clk 0:00:34.2]} 28. Rf4 {[%clk 0:00:14.8]} 28... Qe7 {[%clk
0:00:23.3]} 29. Rh4 {[%clk 0:00:11.9]} 29... Rg8 {[%clk 0:00:14.7]} 30. Bxf7
{[%clk 0:00:10.4]} 30... Ne5 {[%clk 0:00:03]} 31. Bxg8 {[%clk 0:00:09.2]} 31...
Kxg8 {[%clk 0:00:03]} 32. Bd2 {[%clk 0:00:09]} 32... Rf1 {[%clk 0:00:02.2]} 33.
Be3 {[%clk 0:00:08.9]} 33... Rb1 {[%clk 0:00:01.9]} 34. Rd4 {[%clk 0:00:05.9]}
34... Rxb2 {[%clk 0:00:02]} 35. Qd1 {[%clk 0:00:05.5]} 35... Kf7 {[%clk
0:00:01.8]} 36. Rd8 {[%clk 0:00:05.4]} 36... Rb4 {[%clk 0:00:01.6]} 37. Bh6
{[%clk 0:00:05.4]} 1-0

[Event "Early-Titled-Tuesday-Blitz-April-02-2024"]
[Site "Chess.com"]
[Date "2024.04.02"]
[Round "3"]
[White "Shiner22"]
[Black "Matrix3x3a"]
[Result "0-1"]
[WhiteElo "2324"]
[BlackElo "2594"]
[TimeControl "180+1"]
[EndTime "8:28:14 PDT"]
[Termination "Matrix3x3a won by checkmate"]

1. e4 {[%clk 0:03:00.9]} 1... c5 {[%clk 0:02:59.4]} 2. d4 {[%clk 0:03:00.7]}
2... cxd4 {[%clk 0:02:58.8]} 3. c3 {[%clk 0:03:01.2]} 3... Nf6 {[%clk
0:02:58.7]} 4. e5 {[%clk 0:03:01.4]} 4... Nd5 {[%clk 0:02:58.4]} 5. Nf3 {[%clk
0:03:01.8]} 5... Nc6 {[%clk 0:02:57.5]} 6. Bc4 {[%clk 0:03:01.4]} 6... Nb6
{[%clk 0:02:56.8]} 7. Bb3 {[%clk 0:03:01.6]} 7... d5 {[%clk 0:02:56.1]} 8. exd6
{[%clk 0:03:01.9]} 8... Qxd6 {[%clk 0:02:55.6]} 9. O-O {[%clk 0:03:02.1]} 9...
Be6 {[%clk 0:02:53.5]} 10. Bxe6 {[%clk 0:03:00.9]} 10... Qxe6 {[%clk 0:02:53]}
11. Nxd4 {[%clk 0:03:01.6]} 11... Nxd4 {[%clk 0:02:52]} 12. cxd4 {[%clk
0:03:02.3]} 12... Qd7 {[%clk 0:02:51.1]} 13. Nc3 {[%clk 0:03:00.3]} 13... g6
{[%clk 0:02:39.1]} 14. Re1 {[%clk 0:02:51.9]} 14... Bg7 {[%clk 0:02:35.7]} 15.
Bg5 {[%clk 0:02:50.3]} 15... e6 {[%clk 0:02:34.4]} 16. d5 {[%clk 0:02:44.9]}
16... Bxc3 {[%clk 0:02:02.2]} 17. bxc3 {[%clk 0:02:43.8]} 17... Qxd5 {[%clk
0:02:00]} 18. Qg4 {[%clk 0:02:30.6]} 18... O-O {[%clk 0:01:59]} 19. Rad1 {[%clk
0:02:12.6]} 19... Qc4 {[%clk 0:01:48]} 20. Qh3 {[%clk 0:02:07.2]} 20... Nd5
{[%clk 0:01:45.6]} 21. Rd4 {[%clk 0:01:53.8]} 21... Qxc3 {[%clk 0:01:37.2]} 22.
Qxc3 {[%clk 0:01:24.6]} 22... Nxc3 {[%clk 0:01:38.1]} 23. Rd7 {[%clk 0:01:24.7]}
23... b6 {[%clk 0:01:31.2]} 24. Bf6 {[%clk 0:01:07.4]} 24... Nd5 {[%clk
0:01:29.1]} 25. Bg5 {[%clk 0:00:58.5]} 25... Rfc8 {[%clk 0:01:19.3]} 26. h4
{[%clk 0:00:58.1]} 26... Rc7 {[%clk 0:01:18.4]} 27. Rd6 {[%clk 0:00:56.8]} 27...
Rac8 {[%clk 0:01:16.7]} 28. Kh2 {[%clk 0:00:54]} 28... Kg7 {[%clk 0:01:13.8]}
29. h5 {[%clk 0:00:51.3]} 29... h6 {[%clk 0:01:00.5]} 30. Bd8 {[%clk 0:00:46.6]}
30... Rb7 {[%clk 0:00:47.9]} 31. hxg6 {[%clk 0:00:45.8]} 31... Kxg6 {[%clk
0:00:47.4]} 32. Re5 {[%clk 0:00:42.2]} 32... Rc5 {[%clk 0:00:26]} 33. g3 {[%clk
0:00:32.7]} 33... Kg7 {[%clk 0:00:23.8]} 34. Rh5 {[%clk 0:00:19.4]} 34... Rc2
{[%clk 0:00:21]} 35. Kg2 {[%clk 0:00:18]} 35... Rxa2 {[%clk 0:00:20.5]} 36. Rh4
{[%clk 0:00:16.9]} 36... Rc2 {[%clk 0:00:16]} 37. Rg4+ {[%clk 0:00:13.9]} 37...
Kh7 {[%clk 0:00:16.1]} 38. Kf3 {[%clk 0:00:12.7]} 38... Rc3+ {[%clk 0:00:15.3]}
39. Ke2 {[%clk 0:00:12.1]} 39... Rc8 {[%clk 0:00:15]} 40. Rxd5 {[%clk
0:00:11.5]} 40... exd5 {[%clk 0:00:14.5]} 41. Bf6 {[%clk 0:00:12.1]} 41... Rg8
{[%clk 0:00:14.6]} 42. Rd4 {[%clk 0:00:12.2]} 42... Rg6 {[%clk 0:00:14.8]} 43.
Be5 {[%clk 0:00:12.3]} 43... Rd7 {[%clk 0:00:15.3]} 44. f4 {[%clk 0:00:11.4]}
44... Re6 {[%clk 0:00:15.7]} 45. Ra4 {[%clk 0:00:10.3]} 45... f6 {[%clk
0:00:15.7]} 46. Kf3 {[%clk 0:00:09.2]} 46... fxe5 {[%clk 0:00:15.4]} 47. f5
{[%clk 0:00:10.1]} 47... Rf6 {[%clk 0:00:15.6]} 48. Kg4 {[%clk 0:00:10.6]} 48...
d4 {[%clk 0:00:16]} 49. Rc4 {[%clk 0:00:09.9]} 49... d3 {[%clk 0:00:16.4]} 50.
Rc8 {[%clk 0:00:09.4]} 50... d2 {[%clk 0:00:16.4]} 51. Kh5 {[%clk 0:00:09.6]}
51... d1=Q+ {[%clk 0:00:16.5]} 52. g4 {[%clk 0:00:10.5]} 52... Qh1# {[%clk
0:00:16.7]} 0-1

[Event "Early-Titled-Tuesday-Blitz-April-02-2024"]
[Site "Chess.com"]
[Date "2024.04.02"]
[Round "3"]
[White "martinmena"]
[Black "Aalessia"]
[Result "0-1"]
[WhiteElo "2159"]
[BlackElo "2389"]
[TimeControl "180+1"]
[EndTime "8:28:14 PDT"]
[Termination "Aalessia won by resignation"]

1. c4 {[%clk 0:02:58.4]} 1... b6 {[%clk 0:02:55.6]} 2. Nc3 {[%clk 0:02:56.3]}
2... Bb7 {[%clk 0:02:55.2]} 3. e4 {[%clk 0:02:56.8]} 3... c5 {[%clk 0:02:54.7]}
4. g3 {[%clk 0:02:55.4]} 4... Nc6 {[%clk 0:02:51.8]} 5. Bg2 {[%clk 0:02:55.1]}
5... g6 {[%clk 0:02:52.4]} 6. Nge2 {[%clk 0:02:55.2]} 6... Bg7 {[%clk
0:02:51.3]} 7. O-O {[%clk 0:02:55.3]} 7... Nf6 {[%clk 0:02:50.1]} 8. d3 {[%clk
0:02:49.8]} 8... O-O {[%clk 0:02:49.6]} 9. Bg5 {[%clk 0:02:48.2]} 9... Ne8
{[%clk 0:02:48.3]} 10. Qd2 {[%clk 0:02:47.8]} 10... Nc7 {[%clk 0:02:46.9]} 11.
Bh6 {[%clk 0:02:46.7]} 11... Ne6 {[%clk 0:02:46.6]} 12. Bxg7 {[%clk 0:02:46.5]}
12... Kxg7 {[%clk 0:02:46.6]} 13. f4 {[%clk 0:02:46.9]} 13... Ned4 {[%clk
0:02:42.2]} 14. e5 {[%clk 0:02:42.5]} 14... d6 {[%clk 0:02:37]} 15. Nxd4 {[%clk
0:02:39]} 15... cxd4 {[%clk 0:02:34.5]} 16. Ne2 {[%clk 0:02:27.5]} 16... dxe5
{[%clk 0:02:31.8]} 17. fxe5 {[%clk 0:02:28.4]} 17... Qc7 {[%clk 0:02:25.3]} 18.
Qf4 {[%clk 0:02:25]} 18... Nb4 {[%clk 0:02:09.9]} 19. Bxb7 {[%clk 0:02:15.2]}
19... Qxb7 {[%clk 0:02:10.8]} 20. Nxd4 {[%clk 0:01:42.5]} 20... Nxd3 {[%clk
0:02:07.8]} 21. Qg5 {[%clk 0:01:40.1]} 21... f6 {[%clk 0:01:47.5]} 22. Ne6+
{[%clk 0:01:29.7]} 22... Kh8 {[%clk 0:01:42.3]} 23. Qe3 {[%clk 0:00:43.3]} 23...
Nxe5 {[%clk 0:01:39.1]} 24. Nxf8 {[%clk 0:00:40.7]} 24... Rxf8 {[%clk 0:01:40]}
25. b3 {[%clk 0:00:35.5]} 25... Rd8 {[%clk 0:01:29.4]} 26. Rad1 {[%clk
0:00:18.6]} 26... Rxd1 {[%clk 0:01:28.7]} 27. Rxd1 {[%clk 0:00:18.9]} 27... Nf3+
{[%clk 0:01:26.3]} 28. Kf2 {[%clk 0:00:17.8]} 28... Nxh2 {[%clk 0:01:25]} 29.
Qf4 {[%clk 0:00:07.9]} 29... Kg7 {[%clk 0:01:16.6]} 30. Rd3 {[%clk 0:00:04.2]}
30... h5 {[%clk 0:01:13.5]} 31. Rd5 {[%clk 0:00:02.6]} 31... Qc8 {[%clk
0:00:57.1]} 32. Kg1 {[%clk 0:00:02.7]} 32... Qh3 {[%clk 0:00:53.5]} 33. Rd3
{[%clk 0:00:02]} 33... Ng4 {[%clk 0:00:49]} 34. Rd2 {[%clk 0:00:02.6]} 34... h4
{[%clk 0:00:46.7]} 35. gxh4 {[%clk 0:00:02.9]} 35... Qxh4 {[%clk 0:00:46.4]} 36.
Qf3 {[%clk 0:00:03.4]} 36... Qg5 {[%clk 0:00:39.9]} 37. Rg2 {[%clk 0:00:03]}
37... Qc1+ {[%clk 0:00:39.2]} 38. Qf1 {[%clk 0:00:03.4]} 38... Qxf1+ {[%clk
0:00:39.8]} 39. Kxf1 {[%clk 0:00:04.3]} 39... Ne3+ {[%clk 0:00:40.1]} 40. Kf2
{[%clk 0:00:04.8]} 40... Nxg2 {[%clk 0:00:41]} 41. Kxg2 {[%clk 0:00:05.7]} 41...
e5 {[%clk 0:00:39.6]} 42. b4 {[%clk 0:00:06.6]} 42... Kf7 {[%clk 0:00:39.7]} 43.
c5 {[%clk 0:00:05.8]} 43... bxc5 {[%clk 0:00:39.7]} 44. b5 {[%clk 0:00:06.4]}
44... Ke6 {[%clk 0:00:39.4]} 45. a4 {[%clk 0:00:07.1]} 45... Kd6 {[%clk
0:00:39.2]} 46. a5 {[%clk 0:00:07.4]} 46... c4 {[%clk 0:00:38.1]} 47. Kf3 {[%clk
0:00:07]} 47... c3 {[%clk 0:00:36]} 48. Ke2 {[%clk 0:00:05.2]} 48... e4 {[%clk
0:00:33.4]} 49. Ke3 {[%clk 0:00:04.5]} 49... f5 {[%clk 0:00:31.9]} 50. b6 {[%clk
0:00:02.8]} 50... axb6 {[%clk 0:00:31.5]} 51. a6 {[%clk 0:00:03.4]} 51... Kc7
{[%clk 0:00:31.7]} 52. a7 {[%clk 0:00:04.1]} 52... Kb7 {[%clk 0:00:32.1]} 53.
a8=Q+ {[%clk 0:00:05]} 53... Kxa8 {[%clk 0:00:32.4]} 0-1

[Event "Early-Titled-Tuesday-Blitz-April-02-2024"]
[Site "Chess.com"]
[Date "2024.04.02"]
[Round "3"]
[White "TitarovVasiliYouTube"]
[Black "Kushch_Nikolai"]
[Result "1-0"]
[WhiteElo "2637"]
[BlackElo "2445"]
[TimeControl "180+1"]
[EndTime "8:28:18 PDT"]
[Termination "TitarovVasiliYouTube won by resignation"]

1. g3 {[%clk 0:03:00.9]} 1... Nf6 {[%clk 0:02:58.1]} 2. Bg2 {[%clk 0:03:01.8]}
2... e5 {[%clk 0:02:57.6]} 3. Nf3 {[%clk 0:03:02.7]} 3... Nc6 {[%clk 0:02:56.7]}
4. O-O {[%clk 0:03:01]} 4... d5 {[%clk 0:02:56.2]} 5. d3 {[%clk 0:02:59.9]} 5...
Be7 {[%clk 0:02:55.1]} 6. c4 {[%clk 0:03:00.3]} 6... d4 {[%clk 0:02:47.1]} 7.
Bg5 {[%clk 0:02:57.3]} 7... O-O {[%clk 0:02:46.1]} 8. e3 {[%clk 0:02:51.8]} 8...
h6 {[%clk 0:02:42.1]} 9. Bxf6 {[%clk 0:02:51.9]} 9... Bxf6 {[%clk 0:02:42.1]}
10. exd4 {[%clk 0:02:52.8]} 10... exd4 {[%clk 0:02:41.3]} 11. Nbd2 {[%clk
0:02:52.3]} 11... Bf5 {[%clk 0:02:41]} 12. Ne1 {[%clk 0:02:48.8]} 12... Qd7
{[%clk 0:02:38.1]} 13. Ne4 {[%clk 0:02:48.9]} 13... Be7 {[%clk 0:02:35.9]} 14.
a3 {[%clk 0:02:47.4]} 14... a5 {[%clk 0:02:35.1]} 15. Nc2 {[%clk 0:02:46.8]}
15... a4 {[%clk 0:02:31.5]} 16. Rb1 {[%clk 0:02:43.9]} 16... Na5 {[%clk
0:02:31.5]} 17. Nb4 {[%clk 0:02:41.1]} 17... Nb3 {[%clk 0:02:25.6]} 18. Nd5
{[%clk 0:02:37.5]} 18... c6 {[%clk 0:02:22.4]} 19. Nb6 {[%clk 0:02:37.2]} 19...
Qc7 {[%clk 0:02:20.1]} 20. Nxa8 {[%clk 0:02:32.2]} 20... Rxa8 {[%clk 0:02:20]}
21. Qc2 {[%clk 0:02:27.8]} 21... Rd8 {[%clk 0:02:16.7]} 22. Rbe1 {[%clk
0:02:27.6]} 22... Bf8 {[%clk 0:02:14.7]} 23. Nd2 {[%clk 0:02:27.3]} 23... Nc5
{[%clk 0:02:11]} 24. Ne4 {[%clk 0:02:26]} 24... Nb3 {[%clk 0:02:10.5]} 25. Re2
{[%clk 0:02:14.7]} 25... Bg4 {[%clk 0:02:08.8]} 26. f3 {[%clk 0:02:13.7]} 26...
Bf5 {[%clk 0:02:08.8]} 27. Rfe1 {[%clk 0:02:08.3]} 27... Bg6 {[%clk 0:02:06.4]}
28. f4 {[%clk 0:02:06.3]} 28... Bf5 {[%clk 0:02:05.8]} 29. Nf2 {[%clk
0:02:04.2]} 29... Qd7 {[%clk 0:01:58.4]} 30. Be4 {[%clk 0:01:59.7]} 30... Be6
{[%clk 0:01:54.6]} 31. Bf3 {[%clk 0:01:54.3]} 31... Bd6 {[%clk 0:01:51.4]} 32.
Ne4 {[%clk 0:01:53.7]} 32... Bc7 {[%clk 0:01:48.2]} 33. Rf2 {[%clk 0:01:49.4]}
33... Bf5 {[%clk 0:01:32.8]} 34. Bd1 {[%clk 0:01:46.9]} 34... Ba5 {[%clk
0:01:28]} 35. Ree2 {[%clk 0:01:41.2]} 35... Kh8 {[%clk 0:01:24.5]} 36. Qb1
{[%clk 0:01:14.4]} 36... Bg4 {[%clk 0:01:23.9]} 37. Bxb3 {[%clk 0:01:11.2]}
37... Bxe2 {[%clk 0:01:22.3]} 38. Bxa4 {[%clk 0:01:11.8]} 38... Bg4 {[%clk
0:01:20]} 39. Bd1 {[%clk 0:01:11.2]} 39... Bf5 {[%clk 0:01:18.7]} 40. Bf3 {[%clk
0:01:11.2]} 40... Bb6 {[%clk 0:01:16.6]} 41. c5 {[%clk 0:01:10.6]} 41... Bc7
{[%clk 0:01:15.5]} 42. b4 {[%clk 0:01:10.4]} 42... Be6 {[%clk 0:01:12.5]} 43.
Qb2 {[%clk 0:01:06.4]} 43... Qe7 {[%clk 0:01:08.8]} 44. Re2 {[%clk 0:01:06.3]}
44... Qd7 {[%clk 0:00:57.4]} 45. Nd2 {[%clk 0:01:05.9]} 45... Bd5 {[%clk
0:00:54.2]} 46. Bxd5 {[%clk 0:00:59.9]} 46... Qxd5 {[%clk 0:00:54.3]} 47. Qb3
{[%clk 0:00:59.6]} 47... Qf5 {[%clk 0:00:52.7]} 48. Ne4 {[%clk 0:00:57.3]} 48...
Re8 {[%clk 0:00:50.4]} 49. Qd1 {[%clk 0:00:47]} 49... Re6 {[%clk 0:00:49.1]} 50.
Nf2 {[%clk 0:00:45.6]} 50... Qd5 {[%clk 0:00:47.4]} 51. Qe1 {[%clk 0:00:33.2]}
51... Rxe2 {[%clk 0:00:43.6]} 52. Qxe2 {[%clk 0:00:34.1]} 52... Qb3 {[%clk
0:00:38.2]} 53. Qe8+ {[%clk 0:00:33.7]} 53... Kh7 {[%clk 0:00:37.4]} 54. Qe4+
{[%clk 0:00:34.3]} 54... g6 {[%clk 0:00:35.7]} 55. Qxd4 {[%clk 0:00:34.2]} 55...
Qxa3 {[%clk 0:00:31.2]} 56. Ne4 {[%clk 0:00:33.4]} 56... Qc1+ {[%clk 0:00:27.9]}
57. Kg2 {[%clk 0:00:33.5]} 57... Qd1 {[%clk 0:00:25.5]} 58. Nf6+ {[%clk
0:00:32.5]} 58... Kh8 {[%clk 0:00:25.3]} 59. Ne8+ {[%clk 0:00:26.5]} 1-0